[Event "Late-Titled-Tuesday-Blitz-June-04-2024"]
[Site "Chess.com"]
[Date "2024.06.04"]
[Round "9"]
[White "Shankland"]
[Black "Duhless"]
[Result "0-1"]
[WhiteElo "2970"]
[BlackElo "3109"]
[TimeControl "180+1"]
[EndTime "15:43:48 PDT"]
[Termination "Duhless won by resignation"]

1. d4 {[%clk 0:03:00.9]} 1... d5 {[%clk 0:03:00]} 2. c4 {[%clk 0:03:00.5]} 2...
e6 {[%clk 0:03:00.3]} 3. Nc3 {[%clk 0:02:59.7]} 3... Nf6 {[%clk 0:03:01]} 4. Bg5
{[%clk 0:02:59.5]} 4... Be7 {[%clk 0:03:00.8]} 5. e3 {[%clk 0:02:58.7]} 5... h6
{[%clk 0:03:00.8]} 6. Bh4 {[%clk 0:02:58.3]} 6... O-O {[%clk 0:03:00.6]} 7. Rc1
{[%clk 0:02:58]} 7... b6 {[%clk 0:02:59.7]} 8. cxd5 {[%clk 0:02:55.7]} 8... Nxd5
{[%clk 0:02:58.6]} 9. Nxd5 {[%clk 0:02:54.4]} 9... exd5 {[%clk 0:02:56.7]} 10.
Bxe7 {[%clk 0:02:53.3]} 10... Qxe7 {[%clk 0:02:57.3]} 11. Bd3 {[%clk 0:02:46.4]}
11... c5 {[%clk 0:02:55.4]} 12. dxc5 {[%clk 0:02:39.2]} 12... bxc5 {[%clk
0:02:55.1]} 13. Ne2 {[%clk 0:02:39.7]} 13... Nd7 {[%clk 0:02:52.1]} 14. O-O
{[%clk 0:02:39.6]} 14... Nf6 {[%clk 0:02:51.7]} 15. Qc2 {[%clk 0:02:32]} 15...
c4 {[%clk 0:02:51]} 16. Bf5 {[%clk 0:02:32.2]} 16... Bxf5 {[%clk 0:02:51.7]} 17.
Qxf5 {[%clk 0:02:32.6]} 17... Rab8 {[%clk 0:02:51.6]} 18. Rc2 {[%clk 0:02:27.6]}
18... Rb6 {[%clk 0:02:41.4]} 19. Nd4 {[%clk 0:02:23.5]} 19... g6 {[%clk
0:02:34.3]} 20. Qf3 {[%clk 0:02:17.7]} 20... Ne4 {[%clk 0:02:30.3]} 21. b3
{[%clk 0:02:10.9]} 21... Rc8 {[%clk 0:02:24.8]} 22. Rfc1 {[%clk 0:02:06.4]}
22... Rb7 {[%clk 0:02:05.8]} 23. Qh3 {[%clk 0:01:57.7]} 23... Rbc7 {[%clk
0:01:54.6]} 24. bxc4 {[%clk 0:01:46.8]} 24... dxc4 {[%clk 0:01:44.5]} 25. Qxh6
{[%clk 0:01:46.6]} 25... Qf6 {[%clk 0:01:39.7]} 26. Qh3 {[%clk 0:01:41.4]} 26...
c3 {[%clk 0:01:35.8]} 27. Qf3 {[%clk 0:01:40.1]} 27... Qe5 {[%clk 0:01:32.5]}
28. Qe2 {[%clk 0:01:37.1]} 28... Rc4 {[%clk 0:01:30]} 29. Qd3 {[%clk 0:01:34.6]}
29... Qd5 {[%clk 0:01:27.3]} 30. Qe2 {[%clk 0:01:17.1]} 30... Nf6 {[%clk
0:01:11.8]} 31. Qf3 {[%clk 0:01:12.9]} 31... Qe5 {[%clk 0:01:07.8]} 32. h3
{[%clk 0:01:10.1]} 32... Nd5 {[%clk 0:01:06.5]} 33. a3 {[%clk 0:01:02.1]} 33...
Ra4 {[%clk 0:01:06.3]} 34. Rd1 {[%clk 0:00:41.3]} 34... Rxa3 {[%clk 0:00:37.2]}
35. Nb5 {[%clk 0:00:41.2]} 35... Ra5 {[%clk 0:00:37.3]} 36. Qxd5 {[%clk
0:00:37.4]} 36... Rxb5 {[%clk 0:00:37.1]} 37. Qxe5 {[%clk 0:00:29.6]} 37... Rxe5
{[%clk 0:00:38]} 38. Ra1 {[%clk 0:00:29.8]} 38... a5 {[%clk 0:00:36.6]} 39. Kf1
{[%clk 0:00:29.9]} 39... Rec5 {[%clk 0:00:36.6]} 40. Ke2 {[%clk 0:00:29.9]}
40... Kf8 {[%clk 0:00:35.6]} 41. Kd1 {[%clk 0:00:24.3]} 41... Rd5+ {[%clk
0:00:28.3]} 42. Kc1 {[%clk 0:00:22.9]} 42... Rcd8 {[%clk 0:00:27.4]} 43. Kb1
{[%clk 0:00:18.6]} 43... Rd1+ {[%clk 0:00:26.3]} 44. Ka2 {[%clk 0:00:17.5]}
44... R8d2 {[%clk 0:00:21.2]} 45. Rxd1 {[%clk 0:00:16.7]} 45... Rxc2+ {[%clk
0:00:20.7]} 46. Kb3 {[%clk 0:00:17.1]} 46... Rxf2 {[%clk 0:00:21]} 47. Kxc3
{[%clk 0:00:16.5]} 47... Rxg2 {[%clk 0:00:21.1]} 48. Ra1 {[%clk 0:00:16.7]}
48... Rg5 {[%clk 0:00:20]} 49. Kd4 {[%clk 0:00:16.9]} 49... Rh5 {[%clk
0:00:19.3]} 50. e4 {[%clk 0:00:17]} 50... Kg7 {[%clk 0:00:18.6]} 51. Ra3 {[%clk
0:00:14.7]} 51... Kf6 {[%clk 0:00:17.5]} 52. Rf3+ {[%clk 0:00:14.7]} 52... Ke6
{[%clk 0:00:17.6]} 53. Rb3 {[%clk 0:00:15.4]} 53... Kf6 {[%clk 0:00:15.8]} 54.
Rf3+ {[%clk 0:00:15.3]} 54... Kg7 {[%clk 0:00:16.5]} 55. Rb3 {[%clk 0:00:15]}
55... a4 {[%clk 0:00:15.2]} 56. Ra3 {[%clk 0:00:15.1]} 56... Ra5 {[%clk
0:00:15.8]} 57. e5 {[%clk 0:00:15.5]} 57... g5 {[%clk 0:00:14.2]} 58. Rg3 {[%clk
0:00:12.7]} 58... Kh6 {[%clk 0:00:14]} 59. Rf3 {[%clk 0:00:12.7]} 59... a3
{[%clk 0:00:13.5]} 60. Rf6+ {[%clk 0:00:11.6]} 60... Kg7 {[%clk 0:00:12.6]} 61.
Rf1 {[%clk 0:00:11.5]} 61... a2 {[%clk 0:00:13.1]} 62. Ra1 {[%clk 0:00:11.5]}
62... Kg6 {[%clk 0:00:13.8]} 0-1

[Event "Late-Titled-Tuesday-Blitz-June-04-2024"]
[Site "Chess.com"]
[Date "2024.06.04"]
[Round "9"]
[White "KNVB"]
[Black "frederiksvane"]
[Result "0-1"]
[WhiteElo "2778"]
[BlackElo "2905"]
[TimeControl "180+1"]
[EndTime "15:43:52 PDT"]
[Termination "frederiksvane won by checkmate"]

1. e4 {[%clk 0:03:00.9]} 1... e6 {[%clk 0:02:57.9]} 2. c3 {[%clk 0:03:00.2]}
2... d5 {[%clk 0:02:57.3]} 3. Nf3 {[%clk 0:03:01.1]} 3... dxe4 {[%clk
0:02:53.6]} 4. Qa4+ {[%clk 0:03:00.5]} 4... Bd7 {[%clk 0:02:41.6]} 5. Qxe4
{[%clk 0:03:01.4]} 5... Bc6 {[%clk 0:02:39.1]} 6. Qe3 {[%clk 0:03:01.9]} 6...
Nf6 {[%clk 0:02:28.3]} 7. Ne5 {[%clk 0:03:01.3]} 7... Bd6 {[%clk 0:02:28.1]} 8.
Nxc6 {[%clk 0:03:00.2]} 8... Nxc6 {[%clk 0:02:29]} 9. Be2 {[%clk 0:02:52.8]}
9... O-O {[%clk 0:02:28.7]} 10. d3 {[%clk 0:02:51]} 10... a5 {[%clk 0:02:24.9]}
11. a4 {[%clk 0:02:49.6]} 11... Ne7 {[%clk 0:02:23]} 12. O-O {[%clk 0:02:42]}
12... c6 {[%clk 0:02:23.3]} 13. Nd2 {[%clk 0:02:38.5]} 13... Qc7 {[%clk
0:02:22.2]} 14. g3 {[%clk 0:02:29.4]} 14... b5 {[%clk 0:02:10.8]} 15. Bf3 {[%clk
0:02:10]} 15... Rab8 {[%clk 0:02:08.4]} 16. Qe2 {[%clk 0:01:49]} 16... Ned5
{[%clk 0:02:00]} 17. Ne4 {[%clk 0:01:11.6]} 17... Nxe4 {[%clk 0:01:21.7]} 18.
dxe4 {[%clk 0:01:00.7]} 18... Nf6 {[%clk 0:01:21.9]} 19. Re1 {[%clk 0:00:56.8]}
19... Be5 {[%clk 0:01:19.8]} 20. Bg2 {[%clk 0:00:53.2]} 20... b4 {[%clk
0:01:14.5]} 21. f4 {[%clk 0:00:37.6]} 21... Bd6 {[%clk 0:01:14.4]} 22. e5 {[%clk
0:00:38.3]} 22... Bc5+ {[%clk 0:01:14.7]} 23. Kh1 {[%clk 0:00:39.1]} 23... Nd5
{[%clk 0:01:14.5]} 24. c4 {[%clk 0:00:39.4]} 24... Ne7 {[%clk 0:01:14.9]} 25.
Be3 {[%clk 0:00:25.6]} 25... Bxe3 {[%clk 0:01:14.2]} 26. Qxe3 {[%clk 0:00:26.5]}
26... c5 {[%clk 0:01:14.9]} 27. Be4 {[%clk 0:00:22.3]} 27... Rfd8 {[%clk
0:01:08.8]} 28. Rad1 {[%clk 0:00:22]} 28... g6 {[%clk 0:01:09.4]} 29. b3 {[%clk
0:00:21.1]} 29... h5 {[%clk 0:01:05]} 30. Kg2 {[%clk 0:00:16.3]} 30... Kg7
{[%clk 0:01:05.2]} 31. Qg1 {[%clk 0:00:09.8]} 31... Qb6 {[%clk 0:00:23.9]} 32.
Qe3 {[%clk 0:00:09.2]} 32... Nc6 {[%clk 0:00:20.8]} 33. Bxc6 {[%clk 0:00:08.8]}
33... Qxc6+ {[%clk 0:00:21.6]} 34. Qf3 {[%clk 0:00:08.9]} 34... Qc7 {[%clk
0:00:21]} 35. Kf2 {[%clk 0:00:05.2]} 35... Rxd1 {[%clk 0:00:05.7]} 36. Rxd1
{[%clk 0:00:06.1]} 36... Rd8 {[%clk 0:00:06.2]} 37. Rxd8 {[%clk 0:00:03.3]}
37... Qxd8 {[%clk 0:00:07.1]} 38. Qe3 {[%clk 0:00:04]} 38... Qd1 {[%clk
0:00:06.8]} 39. h3 {[%clk 0:00:02.7]} 39... Qc2+ {[%clk 0:00:07]} 40. Kg1 {[%clk
0:00:02.2]} 40... Qb1+ {[%clk 0:00:04.6]} 41. Kg2 {[%clk 0:00:02.3]} 41... Qb2+
{[%clk 0:00:05.1]} 42. Kg1 {[%clk 0:00:02.7]} 42... Qc3 {[%clk 0:00:03.5]} 43.
Kf2 {[%clk 0:00:02.6]} 43... Qc2+ {[%clk 0:00:03.9]} 44. Kg1 {[%clk 0:00:02.6]}
44... Qd1+ {[%clk 0:00:04.3]} 45. Kg2 {[%clk 0:00:02.4]} 45... Kg8 {[%clk
0:00:02.9]} 46. Kh2 {[%clk 0:00:01.4]} 46... Qc2+ {[%clk 0:00:03.2]} 47. Kg1
{[%clk 0:00:01.6]} 47... Qb2 {[%clk 0:00:03]} 48. Kh1 {[%clk 0:00:01.5]} 48...
Qc3 {[%clk 0:00:03.3]} 49. Qe4 {[%clk 0:00:01.3]} 49... Qxb3 {[%clk 0:00:03.4]}
50. Qa8+ {[%clk 0:00:01.5]} 50... Kg7 {[%clk 0:00:03.8]} 51. Qd8 {[%clk
0:00:02.4]} 51... Qc2 {[%clk 0:00:02]} 52. Qf6+ {[%clk 0:00:02.2]} 52... Kg8
{[%clk 0:00:02.1]} 53. Qd8+ {[%clk 0:00:02.6]} 53... Kh7 {[%clk 0:00:02.8]} 54.
Qf8 {[%clk 0:00:02.1]} 54... Qf5 {[%clk 0:00:02.7]} 55. Qxc5 {[%clk 0:00:01.9]}
55... b3 {[%clk 0:00:03.2]} 56. Kg2 {[%clk 0:00:01.7]} 56... b2 {[%clk
0:00:03.1]} 57. g4 {[%clk 0:00:01.7]} 57... Qe4+ {[%clk 0:00:03.3]} 58. Kg3
{[%clk 0:00:01.9]} 58... b1=Q {[%clk 0:00:03.9]} 59. Qf8 {[%clk 0:00:01.9]}
59... Qbe1+ {[%clk 0:00:04.2]} 60. Kh2 {[%clk 0:00:01.9]} 60... Q4h1# {[%clk
0:00:04.7]} 0-1

[Event "Late-Titled-Tuesday-Blitz-June-04-2024"]
[Site "Chess.com"]
[Date "2024.06.04"]
[Round "9"]
[White "fpawn"]
[Black "Michalczak"]
[Result "0-1"]
[WhiteElo "2428"]
[BlackElo "2520"]
[TimeControl "180+1"]
[EndTime "15:43:52 PDT"]
[Termination "Michalczak won by resignation"]

1. e4 {[%clk 0:03:00.9]} 1... c5 {[%clk 0:02:59.4]} 2. Nc3 {[%clk 0:03:00.3]}
2... d6 {[%clk 0:02:56.9]} 3. g3 {[%clk 0:03:00.3]} 3... g6 {[%clk 0:02:55.9]}
4. Bg2 {[%clk 0:03:00.6]} 4... Bg7 {[%clk 0:02:56.2]} 5. d3 {[%clk 0:03:00.9]}
5... Nc6 {[%clk 0:02:56.3]} 6. f4 {[%clk 0:03:00.8]} 6... Nf6 {[%clk 0:02:56.3]}
7. h3 {[%clk 0:03:00.3]} 7... O-O {[%clk 0:02:56.6]} 8. Nf3 {[%clk 0:03:00.3]}
8... Rb8 {[%clk 0:02:56.8]} 9. O-O {[%clk 0:02:55.7]} 9... b5 {[%clk 0:02:57]}
10. Ne2 {[%clk 0:02:50.7]} 10... Bb7 {[%clk 0:02:54.8]} 11. g4 {[%clk
0:02:50.4]} 11... b4 {[%clk 0:02:50.9]} 12. Ng3 {[%clk 0:02:49.8]} 12... a5
{[%clk 0:02:49.8]} 13. Rb1 {[%clk 0:02:49.6]} 13... a4 {[%clk 0:02:49.3]} 14.
Be3 {[%clk 0:02:49.6]} 14... Qc7 {[%clk 0:02:48.5]} 15. Qd2 {[%clk 0:02:48.8]}
15... a3 {[%clk 0:02:45]} 16. b3 {[%clk 0:02:48.2]} 16... Nd7 {[%clk 0:02:40.8]}
17. Qf2 {[%clk 0:02:47.6]} 17... e6 {[%clk 0:02:33.9]} 18. Rfd1 {[%clk
0:02:47.3]} 18... Rbc8 {[%clk 0:02:20.9]} 19. h4 {[%clk 0:02:45.7]} 19... Nd4
{[%clk 0:02:15]} 20. h5 {[%clk 0:02:29.4]} 20... Nxf3+ {[%clk 0:02:11.1]} 21.
Bxf3 {[%clk 0:02:25.8]} 21... d5 {[%clk 0:01:59.8]} 22. e5 {[%clk 0:02:24.4]}
22... d4 {[%clk 0:01:59.7]} 23. Bd2 {[%clk 0:02:22.4]} 23... Bxf3 {[%clk
0:01:54.5]} 24. Qxf3 {[%clk 0:02:22.3]} 24... f6 {[%clk 0:01:54.8]} 25. exf6
{[%clk 0:02:18.1]} 25... Nxf6 {[%clk 0:01:53]} 26. hxg6 {[%clk 0:02:17.3]} 26...
hxg6 {[%clk 0:01:51.9]} 27. Rf1 {[%clk 0:02:07.2]} 27... Nd5 {[%clk 0:01:51.2]}
28. Rbe1 {[%clk 0:02:03.8]} 28... Qf7 {[%clk 0:01:49.6]} 29. Ne4 {[%clk
0:01:58.8]} 29... Rc6 {[%clk 0:01:41.8]} 30. Ng5 {[%clk 0:01:56.1]} 30... Qd7
{[%clk 0:01:39.5]} 31. Qh1 {[%clk 0:01:46.7]} 31... Bf6 {[%clk 0:01:33.9]} 32.
Ne4 {[%clk 0:01:41.8]} 32... Qh7 {[%clk 0:01:27.4]} 33. Qxh7+ {[%clk 0:01:40.2]}
33... Kxh7 {[%clk 0:01:26.2]} 34. Kg2 {[%clk 0:01:35.1]} 34... Kg7 {[%clk
0:01:22]} 35. Rh1 {[%clk 0:01:22.8]} 35... Bd8 {[%clk 0:01:19.3]} 36. Ref1
{[%clk 0:01:17.6]} 36... Bc7 {[%clk 0:01:17.7]} 37. Ng5 {[%clk 0:01:16.7]} 37...
Bxf4 {[%clk 0:01:13.2]} 38. Bxf4 {[%clk 0:01:10.3]} 38... Rxf4 {[%clk 0:01:10]}
39. Rxf4 {[%clk 0:01:08.2]} 39... Nxf4+ {[%clk 0:01:10.9]} 40. Kf3 {[%clk
0:01:07.7]} 40... Nd5 {[%clk 0:01:05.3]} 41. Rh7+ {[%clk 0:01:06.8]} 41... Kf6
{[%clk 0:00:56.2]} 42. Ne4+ {[%clk 0:01:05.6]} 42... Ke5 {[%clk 0:00:56.8]} 43.
g5 {[%clk 0:00:59.6]} 43... Nc3 {[%clk 0:00:55.5]} 44. Nxc3 {[%clk 0:00:50.4]}
44... dxc3 {[%clk 0:00:56.4]} 45. Rf7 {[%clk 0:00:45.8]} 45... Rc8 {[%clk
0:00:42.9]} 46. Rf6 {[%clk 0:00:45.6]} 46... Rg8 {[%clk 0:00:42.7]} 47. Ke3
{[%clk 0:00:45.5]} 47... Rg7 {[%clk 0:00:41.8]} 48. Kf3 {[%clk 0:00:45.5]} 48...
Rg8 {[%clk 0:00:41.6]} 49. Ke3 {[%clk 0:00:45.9]} 49... Rh8 {[%clk 0:00:39.8]}
50. Rxg6 {[%clk 0:00:45.8]} 50... Rh3+ {[%clk 0:00:39.7]} 51. Ke2 {[%clk
0:00:43.3]} 51... Rh2+ {[%clk 0:00:40]} 52. Kd1 {[%clk 0:00:43.5]} 52... Kf5
{[%clk 0:00:36.9]} 53. Rg8 {[%clk 0:00:42.9]} 53... Kf4 {[%clk 0:00:35.8]} 54.
Re8 {[%clk 0:00:41.3]} 54... e5 {[%clk 0:00:35]} 55. g6 {[%clk 0:00:40.1]} 55...
Rg2 {[%clk 0:00:35.4]} 56. Ke1 {[%clk 0:00:36.6]} 56... Rxg6 {[%clk 0:00:33.8]}
57. Kf2 {[%clk 0:00:36.9]} 57... Rh6 {[%clk 0:00:33.6]} 58. Rf8+ {[%clk
0:00:36.9]} 58... Kg4 {[%clk 0:00:33.7]} 59. Ke3 {[%clk 0:00:32.6]} 59... Rh2
{[%clk 0:00:31.9]} 60. Ke4 {[%clk 0:00:30.5]} 60... Rxc2 {[%clk 0:00:30.6]} 61.
Rg8+ {[%clk 0:00:29.5]} 61... Kh3 {[%clk 0:00:28.3]} 62. Kf3 {[%clk 0:00:29.1]}
62... Kh2 {[%clk 0:00:25.8]} 63. Rh8+ {[%clk 0:00:25.4]} 63... Kg1 {[%clk
0:00:25.7]} 64. Rg8+ {[%clk 0:00:24.5]} 64... Kf1 {[%clk 0:00:25.9]} 65. Rh8
{[%clk 0:00:24.5]} 65... Rf2+ {[%clk 0:00:24.8]} 66. Ke3 {[%clk 0:00:24.3]}
66... Re2+ {[%clk 0:00:23.8]} 67. Kf3 {[%clk 0:00:23.2]} 67... Rf2+ {[%clk
0:00:23.6]} 68. Ke3 {[%clk 0:00:23.3]} 68... Ke1 {[%clk 0:00:22.3]} 69. Rh1+
{[%clk 0:00:16.8]} 69... Rf1 {[%clk 0:00:22.5]} 70. Rh2 {[%clk 0:00:17.4]} 70...
Kd1 {[%clk 0:00:20.6]} 71. Ke4 {[%clk 0:00:15.2]} 71... Re1+ {[%clk 0:00:20.9]}
72. Kd5 {[%clk 0:00:15.1]} 72... c2 {[%clk 0:00:21.2]} 0-1

[Event "Late-Titled-Tuesday-Blitz-June-04-2024"]
[Site "Chess.com"]
[Date "2024.06.04"]
[Round "9"]
[White "ural58"]
[Black "rdarruda"]
[Result "0-1"]
[WhiteElo "2419"]
[BlackElo "2517"]
[TimeControl "180+1"]
[EndTime "15:43:53 PDT"]
[Termination "rdarruda won on time"]

1. e4 {[%clk 0:02:58.2]} 1... c5 {[%clk 0:02:51.2]} 2. b3 {[%clk 0:02:57.4]}
2... e6 {[%clk 0:02:50]} 3. Nf3 {[%clk 0:02:55.5]} 3... Nc6 {[%clk 0:02:49.6]}
4. Bb2 {[%clk 0:02:54.8]} 4... d6 {[%clk 0:02:49.7]} 5. d4 {[%clk 0:02:49.9]}
5... cxd4 {[%clk 0:02:48]} 6. Nxd4 {[%clk 0:02:49.9]} 6... Nf6 {[%clk
0:02:48.5]} 7. Nxc6 {[%clk 0:02:49.2]} 7... bxc6 {[%clk 0:02:48.5]} 8. e5 {[%clk
0:02:49.1]} 8... Nd5 {[%clk 0:02:42.2]} 9. c4 {[%clk 0:02:45.7]} 9... Nf4 {[%clk
0:02:16.1]} 10. g3 {[%clk 0:02:39.9]} 10... Ng6 {[%clk 0:02:13.2]} 11. Bg2
{[%clk 0:02:38.7]} 11... d5 {[%clk 0:02:12.3]} 12. O-O {[%clk 0:02:37.2]} 12...
Be7 {[%clk 0:02:11.4]} 13. h4 {[%clk 0:02:36.4]} 13... h6 {[%clk 0:02:04.6]} 14.
h5 {[%clk 0:02:36]} 14... Nf8 {[%clk 0:02:04.6]} 15. Nc3 {[%clk 0:02:30]} 15...
Nh7 {[%clk 0:02:04.8]} 16. f4 {[%clk 0:02:12.4]} 16... Rb8 {[%clk 0:02:04.4]}
17. Qd2 {[%clk 0:02:06.6]} 17... Qb6+ {[%clk 0:01:53]} 18. Kh2 {[%clk
0:02:05.5]} 18... dxc4 {[%clk 0:01:53]} 19. Na4 {[%clk 0:02:03.7]} 19... Qb5
{[%clk 0:01:40.3]} 20. Rfc1 {[%clk 0:01:57.4]} 20... c5 {[%clk 0:01:29.6]} 21.
Rxc4 {[%clk 0:01:53.7]} 21... Bb7 {[%clk 0:01:29.5]} 22. Rd1 {[%clk 0:01:41.2]}
22... Bxg2 {[%clk 0:01:22.2]} 23. Qxg2 {[%clk 0:01:40.1]} 23... O-O {[%clk
0:01:21.8]} 24. Nc3 {[%clk 0:01:37]} 24... Qb6 {[%clk 0:01:14.3]} 25. Rd7 {[%clk
0:01:34.2]} 25... Rfe8 {[%clk 0:01:12.6]} 26. Na4 {[%clk 0:01:30.4]} 26... Qa6
{[%clk 0:01:10.7]} 27. Qd2 {[%clk 0:01:24]} 27... Nf8 {[%clk 0:01:10.2]} 28. Rd3
{[%clk 0:01:20.4]} 28... Red8 {[%clk 0:01:09.5]} 29. Ba3 {[%clk 0:00:51.3]}
29... Rxd3 {[%clk 0:01:08]} 30. Qxd3 {[%clk 0:00:51.5]} 30... Rd8 {[%clk
0:01:08.5]} 31. Qe3 {[%clk 0:00:48.3]} 31... Nd7 {[%clk 0:01:05.8]} 32. Rc2
{[%clk 0:00:33]} 32... Nb6 {[%clk 0:00:52.1]} 33. Bxc5 {[%clk 0:00:28.7]} 33...
Bxc5 {[%clk 0:00:37]} 34. Nxc5 {[%clk 0:00:28.1]} 34... Qf1 {[%clk 0:00:36.9]}
35. Rf2 {[%clk 0:00:24.8]} 35... Qd1 {[%clk 0:00:29.2]} 36. Qe2 {[%clk
0:00:24.3]} 36... Qb1 {[%clk 0:00:27.5]} 37. Ne4 {[%clk 0:00:23.9]} 37... Rd1
{[%clk 0:00:23.7]} 38. Nc3 {[%clk 0:00:21.6]} 38... Rh1+ {[%clk 0:00:23.5]} 39.
Kg2 {[%clk 0:00:21.7]} 39... Qg1+ {[%clk 0:00:23.5]} 40. Kf3 {[%clk 0:00:21.8]}
40... Qc1 {[%clk 0:00:20]} 41. Qd2 {[%clk 0:00:20.4]} 41... Qa1 {[%clk 0:00:19]}
42. Ne4 {[%clk 0:00:19.4]} 42... Nd5 {[%clk 0:00:18.2]} 43. Qb2 {[%clk
0:00:12.7]} 43... Qd1+ {[%clk 0:00:17.6]} 44. Qe2 {[%clk 0:00:13]} 44... Qb1
{[%clk 0:00:17.7]} 45. Qc2 {[%clk 0:00:12.9]} 45... Qg1 {[%clk 0:00:18.3]} 46.
Qd2 {[%clk 0:00:10.9]} 46... Rxh5 {[%clk 0:00:17.8]} 47. Rg2 {[%clk 0:00:09.5]}
47... Qf1+ {[%clk 0:00:17.3]} 48. Rf2 {[%clk 0:00:09.7]} 48... Qh1+ {[%clk
0:00:16.8]} 49. Rg2 {[%clk 0:00:10]} 49... Rh2 {[%clk 0:00:16.8]} 50. Qf2 {[%clk
0:00:08.7]} 50... Ne3 {[%clk 0:00:12.6]} 51. Kxe3 {[%clk 0:00:04.1]} 51... Rxg2
{[%clk 0:00:12.9]} 52. Qf3 {[%clk 0:00:03.7]} 52... Qg1+ {[%clk 0:00:12.7]} 53.
Kd3 {[%clk 0:00:03.3]} 53... Qb1+ {[%clk 0:00:11.9]} 54. Kc3 {[%clk 0:00:03.4]}
54... Rc2+ {[%clk 0:00:10.8]} 55. Kb4 {[%clk 0:00:03.3]} 55... Qxa2 {[%clk
0:00:10.4]} 56. Nc5 {[%clk 0:00:01.3]} 56... a5+ {[%clk 0:00:04.9]} 0-1

[Event "Late-Titled-Tuesday-Blitz-June-04-2024"]
[Site "Chess.com"]
[Date "2024.06.04"]
[Round "9"]
[White "MITerryble"]
[Black "Eduard_Limonov"]
[Result "1-0"]
[WhiteElo "3030"]
[BlackElo "2834"]
[TimeControl "180+1"]
[EndTime "15:44:03 PDT"]
[Termination "MITerryble won by resignation"]

1. d4 {[%clk 0:02:53.2]} 1... d5 {[%clk 0:02:59.7]} 2. Bg5 {[%clk 0:02:53.2]}
2... h6 {[%clk 0:02:58.2]} 3. Bh4 {[%clk 0:02:53.3]} 3... c5 {[%clk 0:02:58.3]}
4. e3 {[%clk 0:02:53.2]} 4... Nc6 {[%clk 0:02:57]} 5. c3 {[%clk 0:02:53]} 5...
Qb6 {[%clk 0:02:49.7]} 6. Qb3 {[%clk 0:02:52.7]} 6... c4 {[%clk 0:02:47.3]} 7.
Qc2 {[%clk 0:02:51.8]} 7... g5 {[%clk 0:02:20.5]} 8. Bg3 {[%clk 0:02:51.6]} 8...
Nf6 {[%clk 0:02:21.1]} 9. Nd2 {[%clk 0:02:50]} 9... Bg7 {[%clk 0:02:20.5]} 10.
h4 {[%clk 0:02:40.5]} 10... Nh5 {[%clk 0:02:04.6]} 11. Bh2 {[%clk 0:02:40]}
11... g4 {[%clk 0:02:03.3]} 12. e4 {[%clk 0:02:34.6]} 12... e6 {[%clk
0:01:54.8]} 13. Be2 {[%clk 0:02:22.1]} 13... f5 {[%clk 0:01:52.8]} 14. e5 {[%clk
0:02:16.1]} 14... O-O {[%clk 0:01:38.1]} 15. Nh3 {[%clk 0:01:59.8]} 15... Bd7
{[%clk 0:01:27.6]} 16. Nf4 {[%clk 0:01:59.4]} 16... Nxf4 {[%clk 0:01:27]} 17.
Bxf4 {[%clk 0:02:00.3]} 17... h5 {[%clk 0:01:20.2]} 18. Nf1 {[%clk 0:01:55.6]}
18... Rac8 {[%clk 0:01:17.1]} 19. Qd2 {[%clk 0:01:54.4]} 19... Qa5 {[%clk
0:01:11.4]} 20. Ng3 {[%clk 0:01:52.9]} 20... Be8 {[%clk 0:01:09.2]} 21. O-O
{[%clk 0:01:53]} 21... b5 {[%clk 0:01:08.3]} 22. a3 {[%clk 0:01:53.5]} 22... Qd8
{[%clk 0:01:06.1]} 23. Bg5 {[%clk 0:01:53.2]} 23... Qd7 {[%clk 0:01:06.3]} 24.
f3 {[%clk 0:01:53.8]} 24... a5 {[%clk 0:00:58.8]} 25. fxg4 {[%clk 0:01:47.9]}
25... hxg4 {[%clk 0:00:59.7]} 26. Rf2 {[%clk 0:01:41.8]} 26... b4 {[%clk
0:00:58.2]} 27. Raf1 {[%clk 0:01:41.8]} 27... bxa3 {[%clk 0:00:55.2]} 28. bxa3
{[%clk 0:01:42.7]} 28... Rb8 {[%clk 0:00:55.4]} 29. h5 {[%clk 0:01:42]} 29...
Qb7 {[%clk 0:00:44.3]} 30. h6 {[%clk 0:01:41]} 30... Bh8 {[%clk 0:00:44.2]} 31.
Bxg4 {[%clk 0:01:40.6]} 31... Bg6 {[%clk 0:00:39.9]} 32. Bh5 {[%clk 0:01:36]}
32... Qf7 {[%clk 0:00:40]} 33. Rf4 {[%clk 0:01:04.9]} 33... Kh7 {[%clk
0:00:31.2]} 34. Rh4 {[%clk 0:01:02.7]} 34... Rg8 {[%clk 0:00:30.1]} 35. Bd1
{[%clk 0:01:00.8]} 35... Qf8 {[%clk 0:00:26.8]} 36. a4 {[%clk 0:00:57.2]} 36...
Qa3 {[%clk 0:00:25.4]} 37. Ne2 {[%clk 0:00:55.4]} 37... Rb2 {[%clk 0:00:25.1]}
38. Qe1 {[%clk 0:00:54.6]} 38... Qa2 {[%clk 0:00:22.7]} 39. Rf2 {[%clk
0:00:36.1]} 39... Nd8 {[%clk 0:00:22.6]} 40. Nf4 {[%clk 0:00:28.3]} 40... Bf7
{[%clk 0:00:18.9]} 41. Bxd8 {[%clk 0:00:20.7]} 41... Rxd8 {[%clk 0:00:19.8]} 42.
g4 {[%clk 0:00:19]} 42... Rg8 {[%clk 0:00:17.7]} 43. Kf1 {[%clk 0:00:19.1]}
43... Rxf2+ {[%clk 0:00:15]} 44. Qxf2 {[%clk 0:00:20]} 44... Qa1 {[%clk
0:00:15.2]} 45. Qe1 {[%clk 0:00:20]} 45... Qc1 {[%clk 0:00:15.2]} 46. gxf5
{[%clk 0:00:18.9]} 46... exf5 {[%clk 0:00:09.7]} 47. Kf2 {[%clk 0:00:17.2]}
47... Qb2+ {[%clk 0:00:08.7]} 48. Be2 {[%clk 0:00:16.5]} 48... Bxe5 {[%clk
0:00:07.9]} 49. dxe5 {[%clk 0:00:10.2]} 49... Qb6+ {[%clk 0:00:07.8]} 50. Kf3
{[%clk 0:00:10.8]} 50... d4 {[%clk 0:00:06.5]} 51. e6 {[%clk 0:00:10]} 51...
Bxe6 {[%clk 0:00:06]} 52. cxd4 {[%clk 0:00:07.9]} 52... Qc6+ {[%clk 0:00:05.9]}
53. Kf2 {[%clk 0:00:07.5]} 53... Qd6 {[%clk 0:00:05.9]} 54. Qc3 {[%clk
0:00:07.2]} 54... Bd5 {[%clk 0:00:05.6]} 55. Qe3 {[%clk 0:00:07.2]} 55... Be4
{[%clk 0:00:05.4]} 56. Bxc4 {[%clk 0:00:03.5]} 56... Qe7 {[%clk 0:00:04]} 57.
Bxg8+ {[%clk 0:00:03.5]} 57... Kxg8 {[%clk 0:00:03.4]} 58. Qg3+ {[%clk 0:00:04]}
58... Kh8 {[%clk 0:00:03.6]} 59. Ng6+ {[%clk 0:00:03.4]} 59... Kh7 {[%clk
0:00:04]} 60. Nxe7 {[%clk 0:00:04.3]} 1-0